fUST/lending_fUST_20241001
["ID","MTS","AMOUNT","RATE_DAILY","PERIOD"]
[339581282,1727712643435,-500.0,0.00013698,2]
[339581283,1727712643446,-743.445561,0.00013698,2]
[339581284,1727712643458,-743.445561,0.00013698,2]
[339581285,1727712643468,-153.184812,0.00013698,2]
[339581286,1727712643478,-500.0,0.00013698,2]
[339581287,1727712643487,-601.62,0.00013698,2]
[339581288,1727712643497,-500.0,0.00013698,2]
[339581289,1727712643507,-500.0,0.00013698,2]
[339581290,1727712643516,-151.0,0.00013698,2]
[339581291,1727712643525,-156.386614,0.00013698,2]
[339581292,1727712643535,-500.0,0.00013698,2]
[339581293,1727712643545,-500.0,0.00013698,2]
[339581294,1727712643555,-500.0,0.00013698,2]
[339581295,1727712643565,-500.0,0.00013698,2]
[339581296,1727712643575,-151.0,0.00013698,2]
[339581297,1727712643585,-151.0,0.00013698,2]
[339581298,1727712643596,-1347.63,0.00013698,2]
[339581299,1727712643606,-500.0,0.00013698,2]
[339581300,1727712643616,-500.0,0.00013698,2]
[339581301,1727712643626,-500.0,0.00013698,2]
[339581302,1727712643637,-500.0,0.00013698,2]
[339581303,1727712643647,-178.20965,0.00013698,2]
[339581304,1727712643656,-500.0,0.00013698,2]
[339581305,1727712643666,-178.20965,0.00013698,2]
[339581306,1727712643676,-178.20965,0.00013698,2]
[339581307,1727712643686,-500.0,0.00013698,2]
[339581308,1727712643695,-178.20965,0.00013698,2]
[339581309,1727712643706,-330.399477,0.00013698,2]
[339581310,1727712643716,-330.399477,0.00013698,2]
[339581311,1727712643726,-500.0,0.00013698,2]
[339581312,1727712643736,-330.399477,0.00013698,2]
[339581313,1727712643746,-330.399477,0.00013698,2]
[339581314,1727712643757,-210.394947,0.00013698,2]
[339581315,1727712643767,-500.0,0.00013698,2]
[339581316,1727712643776,-210.394947,0.00013698,2]
[339581317,1727712643786,-166.666666,0.00013699,2]
[339581318,1727712643797,-3471.030777,0.00013699,2]
[339581319,1727712643807,-917.657466,0.00013699,2]
[339581320,1727712643816,-621.88688,0.00013699,2]
[339581321,1727712643825,-621.88688,0.00013699,2]
[339581322,1727712643836,-621.88688,0.00013699,2]
[339581323,1727712643846,-621.88688,0.00013699,2]
[339581324,1727712643855,-161.15987518,0.00013699,2]
[339581325,1727712643865,-396.73512958,0.00013699,2]
[339581326,1727712643879,-103.26487042,0.00013699,2]
[339581327,1727712643889,-408.97331711,0.00013699,2]
[339581328,1727712643898,-151.0,0.00013699,2]
[339581329,1727712643907,-151.0,0.00013699,2]
[339581330,1727712643918,-153.604193,0.00013699,2]
[339581331,1727712643927,-151.0,0.00013699,2]
[339581332,1727712643937,-410.233443,0.00013699,2]
[339581333,1727712643947,-477.56338487,0.00013699,2]
[339581334,1727712643962,-22.43661513,0.00013699,2]
[339581335,1727712643972,-500.0,0.00013699,2]
[339581336,1727712643981,-500.0,0.00013699,2]
[339581337,1727712643991,-500.0,0.00013699,2]
[339581338,1727712644001,-500.0,0.00013699,2]
[339581339,1727712644011,-500.0,0.00013699,2]
[339581340,1727712644020,-500.0,0.00013699,2]
[339581341,1727712644030,-500.0,0.00013699,2]
[339581342,1727712644039,-500.0,0.00013699,2]
[339581343,1727712644049,-500.0,0.00013699,2]
[339581344,1727712644059,-500.0,0.00013699,2]
[339581345,1727712644068,-500.0,0.00013699,2]
[339581346,1727712644078,-500.0,0.00013699,2]
[339581347,1727712644088,-500.0,0.00013699,2]
[339581348,1727712644099,-500.0,0.00013699,2]
[339581349,1727712644109,-500.0,0.00013699,2]
[339581350,1727712644119,-500.0,0.00013699,2]
[339581351,1727712644129,-500.0,0.00013699,2]
[339581352,1727712644138,-500.0,0.00013699,2]
[339581353,1727712644148,-500.0,0.00013699,2]
[339581354,1727712644157,-500.0,0.00013699,2]
[339581355,1727712644167,-500.0,0.00013699,2]
[339581356,1727712644177,-500.0,0.00013699,2]
[339581357,1727712644186,-500.0,0.00013699,2]
[339581358,1727712644196,-500.0,0.00013699,2]
[339581359,1727712644208,-500.0,0.00013699,2]
[339581360,1727712644218,-500.0,0.00013699,2]
[339581361,1727712644228,-500.0,0.00013699,2]
[339581362,1727712644238,-500.0,0.00013699,2]
[339581363,1727712644248,-500.0,0.00013699,2]
[339581364,1727712644258,-500.0,0.00013699,2]
[339581365,1727712644268,-500.0,0.00013699,2]
[339581366,1727712644279,-410.233443,0.00013699,2]
[339581367,1727712644289,-500.0,0.00013699,2]
[339581368,1727712644299,-500.0,0.00013699,2]
[339581369,1727712644309,-636.04172022,0.00013699,2]
[339581370,1727712644319,-672.37072202,0.00013699,2]
[339581371,1727712644329,-672.37072202,0.00013699,2]
[339581372,1727712644339,-672.37072202,0.00013699,2]
[339581373,1727712644349,-672.37072202,0.00013699,2]
[339581374,1727712644359,-672.37072202,0.00013699,2]
[339581375,1727712644369,-672.37072202,0.00013699,2]
[339581376,1727712644379,-672.37072202,0.00013699,2]
[339581377,1727712644389,-672.37072202,0.00013699,2]
[339581378,1727712644398,-672.37072202,0.00013699,2]
[339581379,1727712644409,-672.37072202,0.00013699,2]
[339581380,1727712644419,-672.37072202,0.00013699,2]
[339581381,1727712644428,-672.37072202,0.00013699,2]
[339581382,1727712644438,-672.37072202,0.00013699,2]
[339581383,1727712644449,-672.37072202,0.00013699,2]
[339581384,1727712644459,-672.37072202,0.00013699,2]
[339581385,1727712644469,-672.37072202,0.00013699,2]
[339581386,1727712644479,-672.37072202,0.00013699,2]
[339581387,1727712644489,-672.37072202,0.00013699,2]
[339581388,1727712644499,-672.37072202,0.00013699,2]
[339581389,1727712644509,-672.37072202,0.00013699,2]
[339581390,1727712644519,-672.37072202,0.00013699,2]
[339581391,1727712644529,-672.37072202,0.00013699,2]
[339581392,1727712644540,-672.37072202,0.00013699,2]
[339581393,1727712644550,-672.37072202,0.00013699,2]
[339581394,1727712644560,-672.37072202,0.00013699,2]
[339581395,1727712644569,-672.37072202,0.00013699,2]
[339581396,1727712644579,-672.37072202,0.00013699,2]
[339581397,1727712644827,-672.37072202,0.00013699,2]
[339581398,1727712644838,-672.37072202,0.00013699,2]
[339581399,1727712644848,-672.37072202,0.00013699,2]
[339581400,1727712644858,-672.37072202,0.00013699,2]
[339581401,1727712644869,-672.37072202,0.00013699,2]
[339581402,1727712644879,-672.37072202,0.00013699,2]
[339581403,1727712644889,-672.37072202,0.00013699,2]
[339581404,1727712644900,-672.37072202,0.00013699,2]
[339581405,1727712644910,-672.37072202,0.00013699,2]
[339581406,1727712644921,-672.37072202,0.00013699,2]
[339581407,1727712644931,-672.37072202,0.00013699,2]
[339581408,1727712644941,-672.37072202,0.00013699,2]
[339581409,1727712644951,-672.37072202,0.00013699,2]
[339581410,1727712644961,-672.37072202,0.00013699,2]
[339581411,1727712644971,-672.37072202,0.00013699,2]
[339581412,1727712644980,-672.37072202,0.00013699,2]
[339581413,1727712644991,-672.37072203,0.00013699,2]
[339581414,1727712645001,-672.37072203,0.00013699,2]
[339581415,1727712645012,-672.37072203,0.00013699,2]
[339581416,1727712645022,-672.37072203,0.00013699,2]
[339581417,1727712645033,-672.37072203,0.00013699,2]
[339581418,1727712645043,-672.37072203,0.00013699,2]
[339581419,1727712645053,-672.37072203,0.00013699,2]
[339581420,1727712645063,-672.37072203,0.00013699,2]
[339581421,1727712645074,-672.37072203,0.00013699,2]
[339581422,1727712645083,-150.112233,0.000137,2]
[339581423,1727712645093,-150.112233,0.000137,2]
[339581424,1727712645103,-150.112233,0.000137,2]
[339581425,1727712645112,-150.112233,0.000137,2]
[339581426,1727712645122,-1000.0,0.00013702,2]
[339581427,1727712645132,-55966.0,0.00013704,2]
[339581428,1727712645142,-150.112233,0.000138,2]
[339581429,1727712645152,-697.83561304,0.0001381,2]
[339581430,1727712645169,-500.0,0.0001381,2]
[339581431,1727712645180,-150.0,0.0001381,2]
[339581432,1727712645190,-150.0,0.0001381,2]
[339581433,1727712645199,-500.0,0.00013837,2]
[339581434,1727712645212,-150.0,0.00013837,2]
[339581435,1727712645223,-150.0,0.00013837,2]
[339581436,1727712645233,-1000.0,0.00013851,2]
[339581437,1727712645243,-500.0,0.00013865,2]
[339581438,1727712645253,-150.0,0.00013865,2]
[339581439,1727712645262,-241.30539446,0.00013865,2]
[339581440,1727712645272,-2932.62661107,0.00013871,2]
[339581441,1727712645281,-204.265152,0.0001389,2]
[339581442,1727712645291,-178.20965,0.0001389,2]
[339581443,1727712645301,-178.20965,0.0001389,2]
[339581444,1727712645311,-330.399477,0.0001389,2]
[339581445,1727712645320,-330.399477,0.0001389,2]
[339581446,1727712645330,-500.0,0.00013892,2]
[339581447,1727712645340,-291.64125952,0.00013892,2]
[339581448,1727712645349,-454.0,0.000139,2]
[339581449,1727712645359,-14954.16001332,0.000139,2]
[339581450,1727712645373,-1574.5,0.000139,2]
[339581451,1727712645389,-7217.32502285,0.000139,2]
[339581452,1727712645403,-773.8725699,0.000139,2]
[339581453,1727712645415,-1268.41937026,0.000139,2]
[339581454,1727712645427,-535.5469514,0.000139,2]
[339581455,1727712645440,-3676.17607227,0.000139,2]
[339581456,1727712645451,-150.112233,0.000139,2]
[339581457,1727712645461,-150.112236,0.000139,2]
[339581458,1727712645471,-150.112233,0.000139,2]
[339581459,1727712645481,-150.112233,0.000139,2]
[339581460,1727712645492,-150.112233,0.000139,2]
[339581461,1727712645502,-150.112233,0.000139,2]
[339581462,1727712645512,-151.0,0.000139,2]
[339581463,1727712645522,-151.0,0.000139,2]
[339581464,1727712645532,-151.0,0.000139,2]
[339581465,1727712645542,-743.445561,0.000139,2]
[339581466,1727712645552,-743.445561,0.000139,2]
[339581467,1727712645562,-500.0,0.0001392,2]
[339581468,1727712645573,-500.0,0.00013947,2]
[339581469,1727712645583,-151.0,0.00013962,2]
[339581470,1727712645593,-151.0,0.00013962,2]
[339581471,1727712645603,-272.178325,0.00013962,2]
[339581472,1727712645613,-151.0,0.00013962,2]
[339581473,1727712645623,-151.0,0.00013962,2]
[339581474,1727712645633,-410.233443,0.00013962,2]
[339581475,1727712645643,-410.233443,0.00013962,2]
[339581476,1727712645653,-304.449478,0.00013962,2]
[339581477,1727712645663,-304.449478,0.00013962,2]
[339581478,1727712645673,-151.0,0.00013962,2]
[339581479,1727712645683,-621.88688,0.00013962,2]
[339581480,1727712645692,-621.88688,0.00013962,2]
[339581481,1727712645703,-263.50113899,0.00013972,2]
[339581482,1727712645713,-500.0,0.00013972,2]
[339581483,1727712645723,-500.0,0.00013972,2]
[339581484,1727712645733,-500.0,0.00013972,2]
[339581485,1727712645743,-500.0,0.00013972,2]
[339581486,1727712645753,-500.0,0.00013972,2]
[339581487,1727712645763,-500.0,0.00013972,2]
[339581488,1727712645772,-500.0,0.00013972,2]
[339581490,1727712645782,-500.0,0.00013972,2]
[339581491,1727712645792,-500.0,0.00013972,2]
[339581492,1727712645801,-500.0,0.00013972,2]
[339581493,1727712645811,-500.0,0.00013972,2]
[339581494,1727712645820,-500.0,0.00013972,2]
[339581495,1727712645830,-500.0,0.00013972,2]
[339581498,1727712645839,-500.0,0.00013972,2]
[339581500,1727712645848,-504.24769947,0.00013972,2]
[339581502,1727712645859,-500.0,0.00013972,2]
[339581503,1727712645869,-500.0,0.00013972,2]
[339581504,1727712645879,-500.0,0.00013972,2]
[339581506,1727712645890,-500.0,0.00013972,2]
[339581509,1727712645900,-1120.69,0.00013972,2]
[339581510,1727712645910,-500.0,0.00013972,2]
[339581511,1727712645920,-500.0,0.00013972,2]
[339581512,1727712645930,-500.0,0.00013972,2]
[339581513,1727712645939,-500.0,0.00013972,2]
[339581514,1727712645949,-500.0,0.00013972,2]
[339581515,1727712645960,-500.0,0.00013972,2]
[339581516,1727712645969,-500.0,0.00013972,2]
[339581517,1727712645979,-500.0,0.00013972,2]
[339581518,1727712645989,-186.51065757,0.00013972,2]
[339581531,1727712646139,-210.394947,0.0001389,2]
[339581532,1727712646148,-313.48934243,0.00013972,2]
[339581533,1727712646158,-500.0,0.00013972,2]
[339581535,1727712646168,-500.0,0.00013972,2]
[339581536,1727712646178,-563.4,0.00013972,2]
[339581537,1727712646188,-500.0,0.00013972,2]
[339581538,1727712646197,-500.0,0.00013972,2]
[339581539,1727712646208,-1893.39,0.00013972,2]
[339581540,1727712646218,-314.68571057,0.00013972,2]
[339581541,1727712646378,-185.31428943,0.00013972,2]
[339581542,1727712646389,-500.0,0.00013972,2]
[339581544,1727712646399,-500.0,0.00013972,2]
[339581546,1727712646409,-500.0,0.00013972,2]
[339581548,1727712646418,-500.0,0.00013972,2]
[339581551,1727712646428,-927.41,0.00013972,2]
[339581552,1727712646437,-240.81739302,0.00013972,2]
[339581555,1727712646450,-259.18260698,0.00013972,2]
[339581557,1727712646461,-32.09588192,0.00013972,2]
[339581559,1727712646475,-467.90411808,0.00013972,2]
[339581561,1727712646484,-500.0,0.00013972,2]
[339581562,1727712646494,-275.64267822,0.00013972,2]
[339581564,1727712646506,-224.35732178,0.00013972,2]
[339581566,1727712646515,-500.0,0.00013972,2]
[339581567,1727712646524,-500.0,0.00013972,2]
[339581569,1727712646533,-584.41588061,0.00013972,2]
[339581571,1727712646546,-458.98411939,0.00013972,2]
[339581572,1727712646555,-12.13588066,0.00013972,2]
[339581589,1727712646763,-151.0,0.00013698,2]
[339581591,1727712646773,-151.0,0.00013698,2]
[339581593,1727712646783,-210.394947,0.00013698,2]
[339581595,1727712646792,-210.394947,0.00013698,2]
[339581597,1727712646802,-210.394947,0.0001389,2]
[339581598,1727712646811,-919.05411934,0.00013972,2]
[339581600,1727712646820,-644.92016083,0.00013972,2]
[339581601,1727712646832,-31.32983917,0.00013972,2]
[339581602,1727712646841,-500.0,0.00013972,2]
[339581603,1727712646850,-152.60123272,0.00013972,2]
[339581604,1727712646862,-347.39876728,0.00013972,2]
[339581606,1727712646871,-8.26551056,0.00013972,2]
[339581608,1727712646882,-492.63051031,0.00013972,2]
[339581610,1727712646891,-500.0,0.00013972,2]
[339581612,1727712646901,-500.0,0.00013972,2]
[339581614,1727712646910,-500.0,0.00013972,2]
[339581616,1727712646921,-500.0,0.00013972,2]
[339581617,1727712646931,-423.78479755,0.00013972,2]
[339581618,1727712646941,-500.0,0.00013972,2]
[339581619,1727712646951,-500.0,0.00013972,2]
[339581620,1727712646961,-500.0,0.00013972,2]
[339581621,1727712646971,-500.0,0.00013972,2]
[339581622,1727712646980,-500.0,0.00013972,2]
[339581623,1727712646989,-500.0,0.00013972,2]
[339581624,1727712646999,-83.58469214,0.00013972,2]
[339581625,1727712647011,-416.41530786,0.00013972,2]
[339581626,1727712647021,-500.0,0.00013972,2]
[339581627,1727712647030,-500.0,0.00013972,2]
[339581628,1727712647039,-500.0,0.00013972,2]
[339581629,1727712647048,-500.0,0.00013972,2]
[339581630,1727712647058,-258.13325224,0.00013972,2]
[339581631,1727712647067,-500.0,0.00013972,2]
[339581632,1727712647076,-500.0,0.00013972,2]
[339581633,1727712647086,-500.0,0.00013972,2]
[339581634,1727712647096,-500.0,0.00013972,2]
[339581635,1727712647105,-500.0,0.00013972,2]
[339581636,1727712647115,-500.0,0.00013972,2]
[339581637,1727712647124,-824.65,0.00013972,2]
[339581638,1727712647133,-500.0,0.00013972,2]
[339581639,1727712647143,-186.76497289,0.00013972,2]
[339581640,1727712647226,-313.23502711,0.00013972,2]
[339581641,1727712647238,-500.0,0.00013972,2]
[339581642,1727712647248,-500.0,0.00013972,2]
[339581643,1727712647257,-500.0,0.00013972,2]
[339581644,1727712647266,-500.0,0.00013972,2]
[339581645,1727712647276,-500.0,0.00013972,2]
[339581646,1727712647285,-178.31367879,0.00013972,2]
[339581647,1727712647296,-500.0,0.00013972,2]
[339581648,1727712647306,-530.69651116,0.00013972,2]
[339581649,1727712647316,-239.45058334,0.00013972,2]
[339581650,1727712684329,1000.0,9.97e-05,2]
[339581651,1727712692186,1000.0,9.758e-05,2]
[339581655,1727712932140,200.0,0.00019887,120]
[339581656,1727713051660,200.0,0.00019311,120]
[339581660,1727713716879,336.14689042,0.0001,7]
[339581662,1727713718901,1545.08216722,0.0001,2]
[339581664,1727713767130,-189.03421,0.00010252,2]
[339581665,1727713767151,-189.03421,0.00010792,2]
[339581666,1727713767171,-300.0,0.00010799,2]
[339581667,1727713767191,-300.0,0.00010799,2]
[339581668,1727713767212,-1329.46938684,0.000108,2]
[339581718,1727713832454,-300.0,0.00010799,2]
[339581721,1727713832464,-300.0,0.00010799,2]
[339581723,1727713832474,-4263.43682798,0.000108,2]
[339581725,1727713832487,-2965.92597572,0.000108,2]
[339581729,1727713832513,-4432.92883178,0.000108,2]
[339581755,1727713838592,-681.23832169,0.000108,2]
[339581756,1727713838603,-3179.84913806,0.000108,2]
[339581762,1727713840873,-8728.38983962,0.000108,2]
[339581763,1727713840882,-3000.0,0.000109,2]
[339581764,1727713840892,-520.21,0.00010959,2]
[339581765,1727713840902,-178.465445,0.00011018,2]
[339581766,1727713840911,-178.465445,0.00011031,2]
[339581767,1727713840920,-178.465445,0.00011045,2]
[339581768,1727713840931,-178.465445,0.00011059,2]
[339581769,1727713840940,-178.465445,0.00011073,2]
[339581770,1727713840950,-250.0,0.0001108,2]
[339581771,1727713840960,-2822.203624,0.00011309,2]
[339581772,1727713840969,-1336.11623969,0.00011309,2]
[339581773,1727713840979,-189.03421,0.00011331,2]
[339581774,1727713840988,-2877.4329184,0.00011387,2]
[339581775,1727713840999,-250.0,0.00011398,2]
[339581776,1727713841009,-250.0,0.00011429,2]
[339581777,1727713841019,-250.0,0.0001146,2]
[339581778,1727713841028,-250.0,0.00011491,2]
[339581779,1727713841037,-250.0,0.00011523,2]
[339581780,1727713841047,-250.0,0.00011554,2]
[339581781,1727713841056,-250.0,0.00011585,2]
[339581782,1727713841065,-250.0,0.00011616,2]
[339581783,1727713841075,-250.0,0.00011648,2]
[339581784,1727713841084,-250.0,0.00011679,2]
[339581785,1727713841094,-250.0,0.0001171,2]
[339581786,1727713841104,-250.0,0.00011741,2]
[339581787,1727713841113,-250.0,0.00011773,2]
[339581788,1727713841123,-250.0,0.00011804,2]
[339581789,1727713841132,-250.0,0.00011835,2]
[339581790,1727713841143,-250.0,0.00011866,2]
[339581791,1727713841152,-420.0,0.0001187,2]
[339581792,1727713841163,-420.0,0.00011879,2]
[339581793,1727713841173,-250.0,0.00011898,2]
[339581794,1727713841183,-250.0,0.00011929,2]
[339581795,1727713841193,-250.0,0.0001196,2]
[339581796,1727713841203,-800.0,0.00011972,2]
[339581797,1727713841212,-250.0,0.00011991,2]
[339581798,1727713841222,-398.43206056,0.000123,2]
[339581799,1727713841231,-500.0,0.00012764,2]
[339581800,1727713841243,-500.0,0.00012972,2]
[339581801,1727713841252,-227.35,0.00012972,2]
[339581802,1727713841262,-500.0,0.00012972,2]
[339581803,1727713841271,-500.0,0.00012972,2]
[339581804,1727713841280,-520.93,0.00012972,2]
[339581805,1727713841290,-587.0,0.00013046,2]
[339581806,1727713841299,-587.0,0.00013067,2]
[339581807,1727713841309,-412.5224329,0.00013078,2]
[339581808,1727713841319,-438.260819,0.00013151,2]
[339581809,1727713841329,-412.5224329,0.00013178,2]
[339581810,1727713841339,-153.0,0.00013227,2]
[339581811,1727713841348,-153.0,0.00013227,2]
[339581812,1727713841358,-153.0,0.00013283,2]
[339581813,1727713841413,-153.0,0.00013283,2]
[339581814,1727713841422,-153.0,0.00013283,2]
[339581815,1727713841432,-153.0,0.00013283,2]
[339581816,1727713841441,-306.0,0.00013283,2]
[339581817,1727713841451,-153.0,0.00013283,2]
[339581818,1727713841460,-306.0,0.00013283,2]
[339581819,1727713841470,-153.0,0.00013283,2]
[339581820,1727713841479,-153.0,0.00013283,2]
[339581821,1727713841489,-800.0,0.00013342,2]
[339581822,1727713841503,-412.5224329,0.0001339,2]
[339581823,1727713841512,-153.0,0.000134,2]
[339581824,1727713841522,-153.0,0.000134,2]
[339581825,1727713841531,-500.0,0.00013402,2]
[339581826,1727713841539,-4228.51561642,0.00013578,2]
[339581827,1727713841548,-1187.80003885,0.00013588,2]
[339581828,1727713841558,-1000.0,0.00013588,2]
[339581829,1727713841568,-412.5224329,0.000136,2]
[339581830,1727713841577,-500.0,0.00013673,2]
[339581831,1727713841586,-500.0,0.00013673,2]
[339581832,1727713841596,-500.0,0.00013673,2]
[339581833,1727713841605,-500.0,0.00013673,2]
[339581834,1727713841615,-500.33226495,0.00013673,2]
[339581835,1727713841624,-500.0,0.00013673,2]
[339581836,1727713841634,-500.45088228,0.00013673,2]
[339581837,1727713841645,-299.51421811,0.00013673,2]
[339581838,1727713841655,-500.0,0.00013673,2]
[339581839,1727713841665,-500.04668334,0.00013673,2]
[339581840,1727713841674,-500.0,0.00013673,2]
[339581841,1727713841683,-500.0,0.00013673,2]
[339581842,1727713841693,-500.0,0.00013673,2]
[339581843,1727713841703,-500.0,0.00013673,2]
[339581844,1727713841716,-500.0,0.00013673,2]
[339581845,1727713841726,-501.07033252,0.00013673,2]
[339581846,1727713841736,-171.66163117,0.00013673,2]
[339581847,1727713841748,-500.0,0.00013673,2]
[339581848,1727713841758,-500.0,0.00013673,2]
[339581849,1727713841768,-287.54060392,0.00013673,2]
[339581850,1727713841778,-500.0,0.00013673,2]
[339581851,1727713841790,-500.0,0.00013673,2]
[339581852,1727713841800,-307606.452204,0.00013688,2]
[339581853,1727713841810,-253434.513317,0.00013688,2]
[339581854,1727713841819,-36204.9304738,0.00013689,2]
[339581855,1727713841829,-500.0,0.00013698,2]
[339581856,1727713841838,-1027.3,0.00013698,2]
[339581857,1727713841847,-500.0,0.00013698,2]
[339581858,1727713841856,-500.0,0.00013698,2]
[339581859,1727713841867,-592.32311398,0.00013698,2]
[339581860,1727713841877,-500.0,0.00013698,2]
[339581861,1727713841887,-500.0,0.00013698,2]
[339581862,1727713841896,-500.0,0.00013698,2]
[339581863,1727713841906,-500.0,0.00013698,2]
[339581864,1727713841916,-500.0,0.00013698,2]
[339581865,1727713841925,-516.45,0.00013698,2]
[339581866,1727713841935,-416.43171568,0.00013698,2]
[339581867,1727713841949,-1319.17828432,0.00013698,2]
[339581868,1727713841958,-500.0,0.00013698,2]
[339581869,1727713841967,-500.0,0.00013698,2]
[339581870,1727713841976,-500.0,0.00013698,2]
[339581871,1727713841985,-500.0,0.00013698,2]
[339581872,1727713841996,-383.71331594,0.00013698,2]
[339581873,1727713842006,-500.0,0.00013698,2]
[339581874,1727713842015,-500.0,0.00013698,2]
[339581875,1727713842025,-500.0,0.00013698,2]
[339581876,1727713842034,-755.93,0.00013698,2]
[339581877,1727713842044,-500.0,0.00013698,2]
[339581878,1727713842053,-514.29585305,0.00013698,2]
[339581879,1727713842063,-576.55,0.00013698,2]
[339581880,1727713842072,-500.0,0.00013698,2]
[339581881,1727713842082,-1291.48,0.00013698,2]
[339581882,1727713842091,-500.0,0.00013698,2]
[339581883,1727713842100,-500.0,0.00013698,2]
[339581884,1727713842110,-500.0,0.00013698,2]
[339581885,1727713842119,-495.0,0.00013698,2]
[339581886,1727713842128,-500.0,0.00013698,2]
[339581887,1727713842138,-500.0,0.00013698,2]
[339581888,1727713842147,-500.0,0.00013698,2]
[339581889,1727713842156,-500.0,0.00013698,2]
[339581890,1727713842166,-853.59,0.00013698,2]
[339581891,1727713842174,-500.0,0.00013698,2]
[339581892,1727713842184,-500.0,0.00013698,2]
[339581893,1727713842193,-500.0,0.00013698,2]
[339581894,1727713842203,-850.12,0.00013698,2]
[339581895,1727713842212,-500.0,0.00013698,2]
[339581896,1727713842221,-508.76,0.00013698,2]
[339581897,1727713842230,-500.0,0.00013698,2]
[339581898,1727713842239,-500.0,0.00013698,2]
[339581899,1727713842250,-500.0,0.00013698,2]
[339581900,1727713842259,-500.0,0.00013698,2]
[339581901,1727713842268,-500.0,0.00013698,2]
[339581902,1727713842277,-500.0,0.00013698,2]
[339581903,1727713842286,-500.0,0.00013698,2]
[339581904,1727713842295,-500.0,0.00013698,2]
[339581905,1727713842304,-500.0,0.00013698,2]
[339581906,1727713842314,-500.0,0.00013698,2]
[339581907,1727713842323,-367.16283068,0.00013698,2]
[339581908,1727713842334,-500.0,0.00013698,2]
[339581909,1727713842343,-500.0,0.00013698,2]
[339581910,1727713842353,-500.0,0.00013698,2]
[339581911,1727713842362,-500.0,0.00013698,2]
[339581912,1727713842371,-500.0,0.00013698,2]
[339581913,1727713842380,-500.0,0.00013698,2]
[339581914,1727713842389,-288.61416153,0.00013698,2]
[339581915,1727713842399,-500.0,0.00013698,2]
[339581916,1727713842410,-230.74659315,0.00013698,2]
[339581917,1727713842419,-500.0,0.00013698,2]
[339581918,1727713842429,-46.71436603,0.00013698,2]
[339581919,1727713842443,-600.73023962,0.00013698,2]
[339581920,1727713842452,-500.0,0.00013698,2]
[339581921,1727713842461,-294.63569736,0.00013698,2]
[339581922,1727713842473,-205.36430264,0.00013698,2]
[339581923,1727713842482,-376.68172844,0.00013698,2]
[339581939,1727713843622,-123.31827156,0.00013698,2]
[339581940,1727713843632,-616.24,0.00013698,2]
[339581941,1727713843641,-500.0,0.00013698,2]
[339581942,1727713843650,-500.0,0.00013698,2]
[339581943,1727713843659,-500.0,0.00013698,2]
[339581944,1727713843669,-500.0,0.00013698,2]
[339581945,1727713843680,-500.0,0.00013698,2]
[339581946,1727713843690,-500.0,0.00013698,2]
[339581947,1727713843699,-500.0,0.00013698,2]
[339581948,1727713843709,-500.0,0.00013698,2]
[339581949,1727713843721,-500.0,0.00013698,2]
[339581950,1727713843730,-500.0,0.00013698,2]
[339581951,1727713843739,-500.0,0.00013698,2]
[339581953,1727713843749,-500.0,0.00013698,2]